[Event "Late-Titled-Tuesday-Blitz-February-20-2024"]
[Site "Chess.com"]
[Date "2024.02.20"]
[Round "7"]
[White "boguszp"]
[Black "PawnEatingZombie"]
[Result "0-1"]
[WhiteElo "1997"]
[BlackElo "2212"]
[TimeControl "180+1"]
[EndTime "15:18:23 PST"]
[Termination "PawnEatingZombie won by checkmate"]

1. d4 {[%clk 0:02:57.4]} 1... Nf6 {[%clk 0:02:59.1]} 2. Bf4 {[%clk 0:02:55.4]}
2... g6 {[%clk 0:02:58.2]} 3. Nc3 {[%clk 0:02:54.1]} 3... Bg7 {[%clk 0:02:58.6]}
4. e4 {[%clk 0:02:53.8]} 4... d6 {[%clk 0:02:58.2]} 5. Qd2 {[%clk 0:02:54.1]}
5... O-O {[%clk 0:02:45.7]} 6. Bh6 {[%clk 0:02:53.4]} 6... c5 {[%clk 0:02:45.3]}
7. d5 {[%clk 0:02:50.2]} 7... b5 {[%clk 0:02:43.4]} 8. Bxb5 {[%clk 0:02:43.9]}
8... Bxh6 {[%clk 0:02:43.1]} 9. Qxh6 {[%clk 0:02:42.4]} 9... Qa5 {[%clk
0:02:31.2]} 10. Bd3 {[%clk 0:02:41.7]} 10... Ba6 {[%clk 0:02:28]} 11. Bxa6
{[%clk 0:02:32.2]} 11... Nxa6 {[%clk 0:02:27]} 12. f3 {[%clk 0:02:22.4]} 12...
Nb4 {[%clk 0:02:24.5]} 13. Qd2 {[%clk 0:02:21.8]} 13... Rab8 {[%clk 0:02:14.3]}
14. a3 {[%clk 0:02:21.2]} 14... Na6 {[%clk 0:02:13]} 15. Nge2 {[%clk 0:02:20]}
15... Rxb2 {[%clk 0:02:09.7]} 16. O-O {[%clk 0:02:19.7]} 16... Rfb8 {[%clk
0:02:04.5]} 17. a4 {[%clk 0:02:03.7]} 17... Nc7 {[%clk 0:02:00.3]} 18. Rfd1
{[%clk 0:01:49.5]} 18... Qb4 {[%clk 0:01:48.9]} 19. Nc1 {[%clk 0:01:40.5]} 19...
Qd4+ {[%clk 0:01:35.9]} 20. Qxd4 {[%clk 0:01:38.9]} 20... cxd4 {[%clk
0:01:36.8]} 21. Rxd4 {[%clk 0:01:33.7]} 21... Rxc2 {[%clk 0:01:37.2]} 22. N1e2
{[%clk 0:01:24.8]} 22... Rbb2 {[%clk 0:01:35.5]} 23. Kf1 {[%clk 0:01:24.5]}
23... Na6 {[%clk 0:01:26.7]} 24. Rc4 {[%clk 0:01:24.6]} 24... Nc5 {[%clk
0:01:24.4]} 25. a5 {[%clk 0:01:23.4]} 25... a6 {[%clk 0:01:22.4]} 26. Ke1 {[%clk
0:01:14.7]} 26... Nfd7 {[%clk 0:01:04.1]} 27. Kf1 {[%clk 0:01:13.4]} 27... Ne5
{[%clk 0:01:01.8]} 28. Rd4 {[%clk 0:01:12.6]} 28... Ned3 {[%clk 0:00:55.8]} 29.
Rd1 {[%clk 0:01:06.1]} 29... Ne5 {[%clk 0:00:36.1]} 30. h3 {[%clk 0:00:59.7]}
30... g5 {[%clk 0:00:36]} 31. Ke1 {[%clk 0:00:53.2]} 31... h5 {[%clk 0:00:35]}
32. R4d2 {[%clk 0:00:48.4]} 32... h4 {[%clk 0:00:28.4]} 33. Rxc2 {[%clk
0:00:35.5]} 33... Rxc2 {[%clk 0:00:29.3]} 34. Rd2 {[%clk 0:00:35.1]} 34... Rxd2
{[%clk 0:00:20.9]} 35. Kxd2 {[%clk 0:00:34.7]} 35... Nc4+ {[%clk 0:00:21.8]} 36.
Ke1 {[%clk 0:00:32.1]} 36... Nxa5 {[%clk 0:00:22.7]} 37. Nd4 {[%clk 0:00:29.8]}
37... Nc4 {[%clk 0:00:22.6]} 38. Nc6 {[%clk 0:00:28.9]} 38... Kf8 {[%clk
0:00:20.4]} 39. Na2 {[%clk 0:00:26]} 39... Ne3 {[%clk 0:00:18.1]} 40. Kf2 {[%clk
0:00:23.5]} 40... Nc2 {[%clk 0:00:18.1]} 41. Nc3 {[%clk 0:00:22.1]} 41... f6
{[%clk 0:00:16.7]} 42. Nd4 {[%clk 0:00:19.6]} 42... Nxd4 {[%clk 0:00:15.7]} 43.
Ke3 {[%clk 0:00:17.9]} 43... Nb5 {[%clk 0:00:15.6]} 44. Na2 {[%clk 0:00:16.3]}
44... a5 {[%clk 0:00:15.2]} 45. Kf2 {[%clk 0:00:14.6]} 45... Ke8 {[%clk
0:00:15.7]} 46. g3 {[%clk 0:00:14.5]} 46... hxg3+ {[%clk 0:00:14.8]} 47. Kxg3
{[%clk 0:00:15]} 47... Kd7 {[%clk 0:00:15.3]} 48. f4 {[%clk 0:00:15]} 48...
Nxe4+ {[%clk 0:00:13.3]} 49. Kf3 {[%clk 0:00:14.8]} 49... Nec3 {[%clk
0:00:08.7]} 50. Nxc3 {[%clk 0:00:13.3]} 50... Nxc3 {[%clk 0:00:08.6]} 51. fxg5
{[%clk 0:00:13.9]} 51... fxg5 {[%clk 0:00:09.2]} 52. Kg4 {[%clk 0:00:13.5]}
52... a4 {[%clk 0:00:09.6]} 53. Kxg5 {[%clk 0:00:13.6]} 53... a3 {[%clk
0:00:10.3]} 54. h4 {[%clk 0:00:14.1]} 54... a2 {[%clk 0:00:10.9]} 55. h5 {[%clk
0:00:14.6]} 55... a1=Q {[%clk 0:00:11]} 56. h6 {[%clk 0:00:14.5]} 56... Ne4+
{[%clk 0:00:11.6]} 57. Kg6 {[%clk 0:00:14.3]} 57... Qh8 {[%clk 0:00:11.2]} 58.
h7 {[%clk 0:00:13.5]} 58... Nf6 {[%clk 0:00:11.1]} 59. Kh6 {[%clk 0:00:12.6]}
59... Qxh7+ {[%clk 0:00:10.9]} 60. Kg5 {[%clk 0:00:12.6]} 60... Qh5+ {[%clk
0:00:10.3]} 61. Kf4 {[%clk 0:00:12.6]} 61... Qg4+ {[%clk 0:00:08.4]} 62. Ke3
{[%clk 0:00:12.3]} 62... Qe4+ {[%clk 0:00:08.1]} 63. Kd2 {[%clk 0:00:11.9]}
63... Qxd5+ {[%clk 0:00:06.5]} 64. Kc3 {[%clk 0:00:11.9]} 64... Qe4 {[%clk
0:00:05.7]} 65. Kd2 {[%clk 0:00:11.4]} 65... Qf3 {[%clk 0:00:05.6]} 66. Kc2
{[%clk 0:00:10.6]} 66... Qe3 {[%clk 0:00:06]} 67. Kb2 {[%clk 0:00:11.1]} 67...
Qd3 {[%clk 0:00:06.4]} 68. Ka1 {[%clk 0:00:11.3]} 68... Qd2 {[%clk 0:00:05.7]}
69. Kb1 {[%clk 0:00:10.8]} 69... e5 {[%clk 0:00:05.8]} 70. Ka1 {[%clk
0:00:10.7]} 70... e4 {[%clk 0:00:06.5]} 71. Kb1 {[%clk 0:00:10.8]} 71... e3
{[%clk 0:00:07.2]} 72. Ka1 {[%clk 0:00:10.9]} 72... e2 {[%clk 0:00:07.8]} 73.
Kb1 {[%clk 0:00:10.6]} 73... e1=R# {[%clk 0:00:07.1]} 0-1

[Event "Late-Titled-Tuesday-Blitz-February-20-2024"]
[Site "Chess.com"]
[Date "2024.02.20"]
[Round "7"]
[White "Jospem"]
[Black "mbojan"]
[Result "0-1"]
[WhiteElo "3083"]
[BlackElo "2912"]
[TimeControl "180+1"]
[EndTime "15:18:30 PST"]
[Termination "mbojan won on time"]

1. e4 {[%clk 0:03:00.9]} 1... c5 {[%clk 0:03:00.1]} 2. Nf3 {[%clk 0:03:00.6]}
2... e6 {[%clk 0:03:00.7]} 3. c3 {[%clk 0:03:01.1]} 3... d5 {[%clk 0:03:01.2]}
4. e5 {[%clk 0:03:01.9]} 4... d4 {[%clk 0:03:01.6]} 5. d3 {[%clk 0:03:02.3]}
5... Nc6 {[%clk 0:03:02.1]} 6. g3 {[%clk 0:03:02.8]} 6... Nge7 {[%clk
0:02:50.3]} 7. Qe2 {[%clk 0:03:02.5]} 7... Qc7 {[%clk 0:02:48.8]} 8. Bg2 {[%clk
0:03:02.8]} 8... Ng6 {[%clk 0:02:49.3]} 9. O-O {[%clk 0:03:03.2]} 9... Ncxe5
{[%clk 0:02:49.6]} 10. cxd4 {[%clk 0:03:02.8]} 10... Nxf3+ {[%clk 0:02:23.4]}
11. Qxf3 {[%clk 0:03:03.7]} 11... cxd4 {[%clk 0:02:23.7]} 12. Nd2 {[%clk
0:03:04.4]} 12... Bd7 {[%clk 0:02:08.6]} 13. Qe2 {[%clk 0:02:51.9]} 13... Bc6
{[%clk 0:02:06.7]} 14. Bxc6+ {[%clk 0:02:49.2]} 14... Qxc6 {[%clk 0:02:01.8]}
15. h4 {[%clk 0:02:49.9]} 15... Bd6 {[%clk 0:01:52.9]} 16. h5 {[%clk 0:02:43.5]}
16... Ne7 {[%clk 0:01:50.5]} 17. h6 {[%clk 0:02:33.8]} 17... g6 {[%clk
0:01:49.9]} 18. Ne4 {[%clk 0:02:34.2]} 18... Nd5 {[%clk 0:01:48.6]} 19. Bg5
{[%clk 0:02:28.9]} 19... O-O {[%clk 0:01:39.6]} 20. Rac1 {[%clk 0:02:28.6]}
20... Qd7 {[%clk 0:01:40]} 21. Bf6 {[%clk 0:02:25.2]} 21... Rfc8 {[%clk
0:01:27.3]} 22. Qf3 {[%clk 0:02:24.2]} 22... Bf8 {[%clk 0:01:24.5]} 23. Bxd4
{[%clk 0:02:22]} 23... f5 {[%clk 0:01:18]} 24. Nc5 {[%clk 0:02:10.9]} 24... Qf7
{[%clk 0:01:02]} 25. Qe2 {[%clk 0:01:51.5]} 25... Rc6 {[%clk 0:00:55]} 26. Nxb7
{[%clk 0:01:11.1]} 26... Rxc1 {[%clk 0:00:49.2]} 27. Rxc1 {[%clk 0:01:12]} 27...
Bxh6 {[%clk 0:00:49.1]} 28. Nd6 {[%clk 0:01:03.9]} 28... Qd7 {[%clk 0:00:44.3]}
29. Qe5 {[%clk 0:01:02.7]} 29... Bg7 {[%clk 0:00:44.2]} 30. Qxg7+ {[%clk
0:01:03]} 30... Qxg7 {[%clk 0:00:44.5]} 31. Bxg7 {[%clk 0:01:03.9]} 31... Kxg7
{[%clk 0:00:45.2]} 32. b3 {[%clk 0:00:54.6]} 32... Kf6 {[%clk 0:00:41.9]} 33. d4
{[%clk 0:00:54.4]} 33... Rd8 {[%clk 0:00:38.8]} 34. Nb7 {[%clk 0:00:52.8]} 34...
Rd7 {[%clk 0:00:32.4]} 35. Nc5 {[%clk 0:00:53.2]} 35... Rd6 {[%clk 0:00:32.9]}
36. Rc4 {[%clk 0:00:40]} 36... Ne7 {[%clk 0:00:27.4]} 37. b4 {[%clk 0:00:31.8]}
37... Nd5 {[%clk 0:00:07.5]} 38. b5 {[%clk 0:00:23.3]} 38... g5 {[%clk
0:00:04.6]} 39. a4 {[%clk 0:00:21.1]} 39... h5 {[%clk 0:00:04.5]} 40. a5 {[%clk
0:00:21.3]} 40... h4 {[%clk 0:00:04.3]} 41. Nd3 {[%clk 0:00:16.6]} 41... hxg3
{[%clk 0:00:04]} 42. fxg3 {[%clk 0:00:17.5]} 42... Ne3 {[%clk 0:00:04.7]} 43.
Ra4 {[%clk 0:00:16]} 43... Nc2 {[%clk 0:00:03.3]} 44. b6 {[%clk 0:00:16.1]}
44... axb6 {[%clk 0:00:04.2]} 45. a6 {[%clk 0:00:16.7]} 45... Rd8 {[%clk
0:00:04.9]} 46. Ne5 {[%clk 0:00:13.3]} 46... Nxd4 {[%clk 0:00:03.9]} 47. a7
{[%clk 0:00:13.5]} 47... Ne2+ {[%clk 0:00:03.7]} 48. Kf2 {[%clk 0:00:13.5]}
48... Kxe5 {[%clk 0:00:04.6]} 49. a8=Q {[%clk 0:00:10.8]} 49... Rxa8 {[%clk
0:00:04.9]} 50. Rxa8 {[%clk 0:00:11.6]} 50... Nd4 {[%clk 0:00:05.6]} 51. Rb8
{[%clk 0:00:11.2]} 51... b5 {[%clk 0:00:06.2]} 52. Rg8 {[%clk 0:00:10.7]} 52...
g4 {[%clk 0:00:04.6]} 53. Rd8 {[%clk 0:00:10.1]} 53... Ke4 {[%clk 0:00:04.7]}
54. Ke1 {[%clk 0:00:08.2]} 54... e5 {[%clk 0:00:05.6]} 55. Kd2 {[%clk
0:00:08.6]} 55... b4 {[%clk 0:00:06.1]} 56. Rb8 {[%clk 0:00:08.5]} 56... b3
{[%clk 0:00:07]} 57. Kc3 {[%clk 0:00:08.4]} 57... f4 {[%clk 0:00:07.3]} 58. Re8
{[%clk 0:00:09.2]} 58... fxg3 {[%clk 0:00:07.4]} 59. Rg8 {[%clk 0:00:10.1]}
59... Kf4 {[%clk 0:00:06.9]} 60. Rf8+ {[%clk 0:00:09.4]} 60... Nf5 {[%clk
0:00:07.3]} 61. Rd8 {[%clk 0:00:08.9]} 61... g2 {[%clk 0:00:07.8]} 62. Rd1
{[%clk 0:00:09.8]} 62... Ne3 {[%clk 0:00:07.9]} 63. Rg1 {[%clk 0:00:10.3]} 63...
Kf3 {[%clk 0:00:08.3]} 64. Rxg2 {[%clk 0:00:10.4]} 64... Nxg2 {[%clk 0:00:07.9]}
65. Kxb3 {[%clk 0:00:11.3]} 65... Nf4 {[%clk 0:00:08.5]} 66. Kc3 {[%clk
0:00:12.2]} 66... g3 {[%clk 0:00:09.4]} 67. Kc4 {[%clk 0:00:13]} 67... g2 {[%clk
0:00:10.3]} 68. Kc5 {[%clk 0:00:13.9]} 68... g1=Q+ {[%clk 0:00:11]} 69. Kd6
{[%clk 0:00:14.8]} 69... Qd4+ {[%clk 0:00:11.2]} 70. Ke7 {[%clk 0:00:15.7]}
70... e4 {[%clk 0:00:11.8]} 71. Kf7 {[%clk 0:00:16.6]} 71... e3 {[%clk
0:00:12.7]} 72. Ke7 {[%clk 0:00:17.5]} 72... e2 {[%clk 0:00:13.1]} 73. Kf8
{[%clk 0:00:18.3]} 73... e1=Q {[%clk 0:00:13.1]} 74. Kg8 {[%clk 0:00:19.2]}
74... Qe8+ {[%clk 0:00:13.1]} 0-1

[Event "Late-Titled-Tuesday-Blitz-February-20-2024"]
[Site "Chess.com"]
[Date "2024.02.20"]
[Round "7"]
[White "jaskol95"]
[Black "IndianSchoolOfSuffering"]
[Result "1-0"]
[WhiteElo "2598"]
[BlackElo "2429"]
[TimeControl "180+1"]
[EndTime "15:18:40 PST"]
[Termination "jaskol95 won on time"]

1. e4 {[%clk 0:03:00.9]} 1... c5 {[%clk 0:02:58.1]} 2. Nf3 {[%clk 0:02:59.9]}
2... d6 {[%clk 0:02:57.7]} 3. Bb5+ {[%clk 0:02:59.1]} 3... Nd7 {[%clk
0:02:56.4]} 4. a4 {[%clk 0:02:58.8]} 4... Nf6 {[%clk 0:02:56.4]} 5. Nc3 {[%clk
0:02:58.6]} 5... g6 {[%clk 0:02:55.3]} 6. a5 {[%clk 0:02:51.3]} 6... Bg7 {[%clk
0:02:50.2]} 7. O-O {[%clk 0:02:49.7]} 7... O-O {[%clk 0:02:48.6]} 8. a6 {[%clk
0:02:39.2]} 8... bxa6 {[%clk 0:02:44.1]} 9. Bxa6 {[%clk 0:02:37.2]} 9... Bxa6
{[%clk 0:02:34]} 10. Rxa6 {[%clk 0:02:37.1]} 10... Nb8 {[%clk 0:02:32.8]} 11.
Ra1 {[%clk 0:02:36.7]} 11... Nc6 {[%clk 0:02:33.2]} 12. d3 {[%clk 0:02:36.7]}
12... Nd7 {[%clk 0:02:30]} 13. Bd2 {[%clk 0:02:30]} 13... Rb8 {[%clk 0:02:27.1]}
14. b3 {[%clk 0:02:27.5]} 14... e6 {[%clk 0:02:26.4]} 15. Ra6 {[%clk 0:02:08.8]}
15... Qc7 {[%clk 0:02:20.7]} 16. Qa1 {[%clk 0:02:05.1]} 16... Rb7 {[%clk
0:02:18]} 17. Qc1 {[%clk 0:01:40]} 17... Nb4 {[%clk 0:02:15.2]} 18. Ra3 {[%clk
0:01:35.8]} 18... Nb8 {[%clk 0:02:12]} 19. Na2 {[%clk 0:01:30.4]} 19... N8c6
{[%clk 0:02:04.9]} 20. Bh6 {[%clk 0:01:24.9]} 20... Bxh6 {[%clk 0:01:47.4]} 21.
Qxh6 {[%clk 0:01:24.1]} 21... f6 {[%clk 0:01:47.8]} 22. Qd2 {[%clk 0:01:15.6]}
22... Nxa2 {[%clk 0:01:35.9]} 23. Rxa2 {[%clk 0:01:15.8]} 23... Nd4 {[%clk
0:01:33.9]} 24. Nxd4 {[%clk 0:01:04.3]} 24... cxd4 {[%clk 0:01:33]} 25. Ra4
{[%clk 0:01:05]} 25... Rc8 {[%clk 0:01:27.7]} 26. Rc4 {[%clk 0:00:54]} 26... Qb8
{[%clk 0:01:19.3]} 27. Rxd4 {[%clk 0:00:53]} 27... Rbc7 {[%clk 0:01:19.1]} 28.
Rb4 {[%clk 0:00:42.9]} 28... Qa8 {[%clk 0:01:15.1]} 29. Rc4 {[%clk 0:00:38.3]}
29... d5 {[%clk 0:01:13.2]} 30. Rxc7 {[%clk 0:00:37.8]} 30... Rxc7 {[%clk
0:01:13.2]} 31. f3 {[%clk 0:00:36.1]} 31... d4 {[%clk 0:01:10.8]} 32. Ra1 {[%clk
0:00:33.5]} 32... Qc8 {[%clk 0:01:08]} 33. Ra2 {[%clk 0:00:30.2]} 33... Rc3
{[%clk 0:01:04.3]} 34. Kf1 {[%clk 0:00:28.6]} 34... Qc7 {[%clk 0:01:02.8]} 35.
g3 {[%clk 0:00:27.9]} 35... a5 {[%clk 0:00:58.6]} 36. Ke1 {[%clk 0:00:26]} 36...
e5 {[%clk 0:00:58.3]} 37. Kd1 {[%clk 0:00:25.3]} 37... Qc5 {[%clk 0:00:58.2]}
38. Qc1 {[%clk 0:00:22.5]} 38... Qb5 {[%clk 0:00:52.8]} 39. Qa3 {[%clk
0:00:16.6]} 39... Rc5 {[%clk 0:00:50.2]} 40. Qa4 {[%clk 0:00:16.2]} 40... Qb6
{[%clk 0:00:47.7]} 41. Rb2 {[%clk 0:00:10.4]} 41... Rb5 {[%clk 0:00:45.5]} 42.
Qc4+ {[%clk 0:00:10.3]} 42... Kg7 {[%clk 0:00:44.9]} 43. Ra2 {[%clk 0:00:10.7]}
43... Rb4 {[%clk 0:00:42.5]} 44. Qd5 {[%clk 0:00:10.6]} 44... Rb5 {[%clk
0:00:41.9]} 45. Qd7+ {[%clk 0:00:11]} 45... Kh6 {[%clk 0:00:41.9]} 46. Ra4
{[%clk 0:00:11.5]} 46... Rc5 {[%clk 0:00:40.7]} 47. Qe8 {[%clk 0:00:09.3]} 47...
Kg7 {[%clk 0:00:38.9]} 48. Qd7+ {[%clk 0:00:09.1]} 48... Kh6 {[%clk 0:00:38.7]}
49. Qe7 {[%clk 0:00:09.6]} 49... Rc8 {[%clk 0:00:22.8]} 50. h4 {[%clk
0:00:08.9]} 50... Qc6 {[%clk 0:00:13]} 51. Rc4 {[%clk 0:00:08.5]} 51... Qa6
{[%clk 0:00:11.7]} 52. Rxc8 {[%clk 0:00:08.4]} 52... Qxc8 {[%clk 0:00:12.3]} 53.
Qxf6 {[%clk 0:00:08.7]} 53... Qc3 {[%clk 0:00:12.2]} 54. Qg5+ {[%clk 0:00:08.7]}
54... Kg7 {[%clk 0:00:11.7]} 55. Qxe5+ {[%clk 0:00:09.4]} 55... Kh6 {[%clk
0:00:12.6]} 56. Qg5+ {[%clk 0:00:09.6]} 56... Kg7 {[%clk 0:00:12.5]} 57. Qd2
{[%clk 0:00:10.2]} 57... Qa1+ {[%clk 0:00:11.4]} 58. Ke2 {[%clk 0:00:10.8]}
58... Qg1 {[%clk 0:00:11.1]} 59. Qe1 {[%clk 0:00:10.1]} 59... Qh2+ {[%clk
0:00:09]} 60. Kd1 {[%clk 0:00:09.6]} 60... Qg2 {[%clk 0:00:08.5]} 61. Kc1 {[%clk
0:00:09]} 61... Qxf3 {[%clk 0:00:08]} 62. Qxa5 {[%clk 0:00:09.5]} 62... Qxg3
{[%clk 0:00:07.7]} 63. Qc5 {[%clk 0:00:09.5]} 63... Qe1+ {[%clk 0:00:06.7]} 64.
Kb2 {[%clk 0:00:10]} 64... Qf2 {[%clk 0:00:05.3]} 65. Qe7+ {[%clk 0:00:09.6]}
65... Kh6 {[%clk 0:00:04.9]} 66. Qg5+ {[%clk 0:00:10.2]} 66... Kg7 {[%clk
0:00:05.4]} 67. Qe5+ {[%clk 0:00:10.9]} 67... Kh6 {[%clk 0:00:06]} 68. b4 {[%clk
0:00:10.9]} 68... Qg1 {[%clk 0:00:05.1]} 69. b5 {[%clk 0:00:10.1]} 69... Qe1
{[%clk 0:00:04.6]} 70. Qxd4 {[%clk 0:00:09.5]} 70... Qxh4 {[%clk 0:00:03.7]} 71.
b6 {[%clk 0:00:09.1]} 71... Qe7 {[%clk 0:00:03.3]} 72. Qc3 {[%clk 0:00:05.3]}
72... g5 {[%clk 0:00:02.6]} 73. Qc6+ {[%clk 0:00:05.3]} 1-0

[Event "Late-Titled-Tuesday-Blitz-February-20-2024"]
[Site "Chess.com"]
[Date "2024.02.20"]
[Round "7"]
[White "KaydenTroffChess"]
[Black "DefiantChair"]
[Result "0-1"]
[WhiteElo "2810"]
[BlackElo "2619"]
[TimeControl "180+1"]
[EndTime "15:19:43 PST"]
[Termination "DefiantChair won by resignation"]

1. d4 {[%clk 0:03:00.9]} 1... Nf6 {[%clk 0:02:59.6]} 2. Nf3 {[%clk 0:03:01.1]}
2... d5 {[%clk 0:02:59.3]} 3. Bf4 {[%clk 0:03:00.9]} 3... c5 {[%clk 0:02:59.2]}
4. e3 {[%clk 0:03:01.2]} 4... Nc6 {[%clk 0:02:59.5]} 5. Nc3 {[%clk 0:03:01.4]}
5... a6 {[%clk 0:02:57.8]} 6. dxc5 {[%clk 0:03:01.6]} 6... e6 {[%clk 0:02:57.8]}
7. Na4 {[%clk 0:03:01.7]} 7... Bxc5 {[%clk 0:02:52.8]} 8. Nxc5 {[%clk
0:03:02.6]} 8... Qa5+ {[%clk 0:02:53.2]} 9. c3 {[%clk 0:03:03]} 9... Qxc5 {[%clk
0:02:53.9]} 10. Bd3 {[%clk 0:03:03]} 10... O-O {[%clk 0:02:53.6]} 11. O-O {[%clk
0:03:01.7]} 11... Qe7 {[%clk 0:02:53.7]} 12. Ne5 {[%clk 0:03:00.7]} 12... Nxe5
{[%clk 0:02:53.6]} 13. Bxe5 {[%clk 0:03:00.8]} 13... Nd7 {[%clk 0:02:54.3]} 14.
Bg3 {[%clk 0:02:58.2]} 14... Nc5 {[%clk 0:02:47.9]} 15. Bc2 {[%clk 0:02:53.4]}
15... b5 {[%clk 0:02:47.3]} 16. b4 {[%clk 0:02:44.2]} 16... Nd7 {[%clk
0:02:42.9]} 17. a4 {[%clk 0:02:43.8]} 17... Bb7 {[%clk 0:02:42.2]} 18. axb5
{[%clk 0:02:41.2]} 18... axb5 {[%clk 0:02:43.1]} 19. Qd3 {[%clk 0:02:40.7]}
19... f5 {[%clk 0:02:32.5]} 20. Qxb5 {[%clk 0:02:35.8]} 20... Nf6 {[%clk
0:02:32.6]} 21. Be5 {[%clk 0:02:28.1]} 21... Ne4 {[%clk 0:02:27.6]} 22. Qb6
{[%clk 0:01:54.5]} 22... Qd7 {[%clk 0:02:11.5]} 23. Qd4 {[%clk 0:01:49.5]} 23...
Rfc8 {[%clk 0:02:05.6]} 24. Rxa8 {[%clk 0:01:48.7]} 24... Bxa8 {[%clk
0:02:06.5]} 25. Bxe4 {[%clk 0:01:39.2]} 25... fxe4 {[%clk 0:02:06.2]} 26. Ra1
{[%clk 0:01:39]} 26... Bc6 {[%clk 0:01:58]} 27. Ra7 {[%clk 0:01:34.7]} 27... Ra8
{[%clk 0:01:57.8]} 28. Rxa8+ {[%clk 0:01:29.1]} 28... Bxa8 {[%clk 0:01:58.7]}
29. h4 {[%clk 0:01:27.5]} 29... Bc6 {[%clk 0:01:57]} 30. f3 {[%clk 0:01:12.9]}
30... exf3 {[%clk 0:01:55.1]} 31. gxf3 {[%clk 0:01:13.8]} 31... h6 {[%clk
0:01:55.1]} 32. Kf2 {[%clk 0:01:12.1]} 32... Qf7 {[%clk 0:01:54.3]} 33. Qc5
{[%clk 0:01:08.1]} 33... Bb7 {[%clk 0:01:54]} 34. b5 {[%clk 0:01:06.7]} 34... d4
{[%clk 0:01:50.3]} 35. f4 {[%clk 0:00:47.7]} 35... d3 {[%clk 0:01:43.5]} 36. Qd4
{[%clk 0:00:38.6]} 36... Qg6 {[%clk 0:01:39.5]} 37. e4 {[%clk 0:00:26.8]} 37...
Bxe4 {[%clk 0:01:37.9]} 38. Ke3 {[%clk 0:00:19.2]} 38... Bf5 {[%clk 0:01:37]}
39. Qd8+ {[%clk 0:00:16]} 39... Kh7 {[%clk 0:01:36.8]} 40. Kd4 {[%clk
0:00:09.7]} 40... d2 {[%clk 0:01:33.3]} 41. Ke3 {[%clk 0:00:04.1]} 41... Qg1+
{[%clk 0:01:15.8]} 42. Kxd2 {[%clk 0:00:04.2]} 42... Qf2+ {[%clk 0:01:15.6]} 43.
Kd1 {[%clk 0:00:04.9]} 43... Bc2+ {[%clk 0:01:13]} 44. Kc1 {[%clk 0:00:05.1]}
44... Bf5 {[%clk 0:01:12.6]} 45. Qd1 {[%clk 0:00:04.4]} 45... Qc5 {[%clk
0:01:05.6]} 46. Qe2 {[%clk 0:00:03.1]} 46... Qg1+ {[%clk 0:01:03.1]} 47. Kd2
{[%clk 0:00:02.9]} 47... Qa1 {[%clk 0:01:00]} 48. Bd4 {[%clk 0:00:03.5]} 48...
Qb2+ {[%clk 0:00:59.4]} 49. Ke3 {[%clk 0:00:04.2]} 49... Qc1+ {[%clk 0:00:59.1]}
50. Kf3 {[%clk 0:00:03.6]} 50... Qh1+ {[%clk 0:00:56.8]} 51. Ke3 {[%clk
0:00:04]} 51... Qe4+ {[%clk 0:00:54.4]} 52. Kd2 {[%clk 0:00:03.1]} 52... Qb1
{[%clk 0:00:54.9]} 53. Qe5 {[%clk 0:00:02.7]} 53... Qd3+ {[%clk 0:00:51.6]} 54.
Ke1 {[%clk 0:00:03.6]} 54... Qg3+ {[%clk 0:00:51.8]} 55. Kd2 {[%clk 0:00:03.3]}
55... Qd3+ {[%clk 0:00:51.4]} 56. Ke1 {[%clk 0:00:04]} 56... Qg3+ {[%clk
0:00:51.6]} 57. Bf2 {[%clk 0:00:04.7]} 57... Qf3 {[%clk 0:00:47.6]} 58. Qe3
{[%clk 0:00:04.2]} 58... Qd5 {[%clk 0:00:44.2]} 59. Qe5 {[%clk 0:00:03.7]} 59...
Qf3 {[%clk 0:00:44]} 60. Bc5 {[%clk 0:00:03.7]} 60... Qg3+ {[%clk 0:00:43.3]}
61. Kd2 {[%clk 0:00:04]} 61... Qxh4 {[%clk 0:00:42.9]} 62. Bd4 {[%clk
0:00:03.4]} 62... Qh2+ {[%clk 0:00:42.1]} 63. Kd1 {[%clk 0:00:04]} 63... Qc2+
{[%clk 0:00:38]} 64. Ke1 {[%clk 0:00:04]} 64... Qg2 {[%clk 0:00:38.8]} 65. b6
{[%clk 0:00:03.4]} 65... h5 {[%clk 0:00:38.3]} 66. Qe2 {[%clk 0:00:02.4]} 66...
Qg3+ {[%clk 0:00:38.4]} 67. Kd2 {[%clk 0:00:02.8]} 67... Qxf4+ {[%clk
0:00:35.6]} 68. Qe3 {[%clk 0:00:03.5]} 68... Qb8 {[%clk 0:00:31.1]} 69. Qg5
{[%clk 0:00:03.1]} 69... Qh2+ {[%clk 0:00:27.7]} 70. Ke3 {[%clk 0:00:03.5]}
70... Qh3+ {[%clk 0:00:27.3]} 71. Kf2 {[%clk 0:00:04]} 71... Qh2+ {[%clk
0:00:27.1]} 72. Ke1 {[%clk 0:00:04.7]} 72... Qh1+ {[%clk 0:00:24.1]} 73. Kd2
{[%clk 0:00:04.7]} 73... Qh2+ {[%clk 0:00:20.7]} 74. Ke3 {[%clk 0:00:04.3]}
74... Qh3+ {[%clk 0:00:19.7]} 75. Kf2 {[%clk 0:00:04.7]} 75... Qh2+ {[%clk
0:00:19.8]} 76. Qg2 {[%clk 0:00:05.2]} 76... Qf4+ {[%clk 0:00:17.4]} 77. Ke1
{[%clk 0:00:05.2]} 77... Bg4 {[%clk 0:00:16.8]} 78. Qc2+ {[%clk 0:00:04.4]}
78... g6 {[%clk 0:00:15.5]} 79. Qd3 {[%clk 0:00:03.1]} 79... Qc1+ {[%clk
0:00:15.4]} 80. Kf2 {[%clk 0:00:03.5]} 80... Qf4+ {[%clk 0:00:15.6]} 81. Kg1
{[%clk 0:00:04.2]} 81... h4 {[%clk 0:00:15.6]} 82. Qe3 {[%clk 0:00:04.6]} 82...
Qf5 {[%clk 0:00:12.1]} 83. Qe5 {[%clk 0:00:04.8]} 83... Qxe5 {[%clk 0:00:11.4]}
84. Bxe5 {[%clk 0:00:05.7]} 84... Bf3 {[%clk 0:00:11.9]} 85. Kh2 {[%clk
0:00:06.1]} 85... g5 {[%clk 0:00:11.4]} 86. c4 {[%clk 0:00:05.6]} 86... Kg6
{[%clk 0:00:11.5]} 87. Kg1 {[%clk 0:00:06]} 87... Kf5 {[%clk 0:00:10.9]} 88. Bd6
{[%clk 0:00:06.1]} 88... Bb7 {[%clk 0:00:07.9]} 89. Be7 {[%clk 0:00:06.2]} 89...
e5 {[%clk 0:00:08.3]} 90. Kf2 {[%clk 0:00:06.6]} 90... e4 {[%clk 0:00:08.7]} 91.
Bc5 {[%clk 0:00:06.4]} 91... g4 {[%clk 0:00:08.8]} 92. Be7 {[%clk 0:00:06.5]}
92... g3+ {[%clk 0:00:08.9]} 93. Kg1 {[%clk 0:00:06.2]} 93... Kg4 {[%clk
0:00:09.6]} 94. Bc5 {[%clk 0:00:06.2]} 94... h3 {[%clk 0:00:09.8]} 95. Kf1
{[%clk 0:00:05.3]} 95... e3 {[%clk 0:00:09.6]} 96. Bxe3 {[%clk 0:00:05.2]} 96...
h2 {[%clk 0:00:10]} 97. Ke2 {[%clk 0:00:06.1]} 97... h1=Q {[%clk 0:00:10.9]} 98.
Kd3 {[%clk 0:00:07]} 98... Qe4+ {[%clk 0:00:11.1]} 99. Kd2 {[%clk 0:00:07.2]}
99... Kf3 {[%clk 0:00:10.8]} 100. c5 {[%clk 0:00:08.1]} 100... Qxe3+ {[%clk
0:00:11]} 101. Kc2 {[%clk 0:00:09]} 101... Be4+ {[%clk 0:00:11]} 0-1